bitfinex-derivatives/quotes_BTCF0:USTF0_20240903
["timestamp","ask_amount","ask_price","bid_price","bid_amount"]
[1725396567202,6.99950135,58109.0,58108.0,0.025]
[1725396574798,7.04950135,58109.0,58108.0,0.025]
[1725396574996,6.99950135,58109.0,58108.0,0.025]
[1725396575396,6.99950135,58109.0,58108.0,0.09383753]
[1725396578504,6.99950135,58109.0,58108.0,0.09383541]
[1725396581398,7.06813604,58109.0,58108.0,0.09383541]
[1725396581803,6.99950135,58109.0,58108.0,0.09383541]
[1725396582596,7.06813525,58109.0,58108.0,0.09383541]
[1725396583100,7.0681453,58109.0,58108.0,0.025]
[1725396583996,6.99950135,58109.0,58108.0,0.025]
[1725396587503,6.99950135,58109.0,58108.0,0.07663445]
[1725396588511,6.89950135,58109.0,58108.0,0.025]
[1725396588802,6.98535344,58109.0,58108.0,0.025]
[1725396589004,6.89928744,58109.0,58108.0,0.025]
[1725396589209,6.73836935,58109.0,58108.0,0.158568]
[1725396589399,6.73836935,58109.0,58108.0,1.323548]
[1725396589798,6.80704575,58109.0,58108.0,1.323548]
[1725396590000,6.80704575,58109.0,58108.0,1.409616]
[1725396590205,6.80704575,58109.0,58108.0,1.770416]
[1725396590405,6.73836935,58109.0,58108.0,1.770416]
[1725396591301,6.73836935,58109.0,58108.0,1.170416]
[1725396593410,6.73836935,58109.0,58108.0,0.568068]
[1725396594307,6.73836935,58109.0,58108.0,1.084348]
[1725396594611,6.73836935,58109.0,58108.0,0.568068]
[1725396594810,6.73836935,58109.0,58108.0,0.207268]
[1725396595006,6.73836935,58109.0,58108.0,0.568068]
[1725396598916,6.82443535,58109.0,58108.0,0.207268]
[1725396599115,6.82443535,58109.0,58108.0,0.568068]
[1725396600413,6.82443535,58109.0,58108.0,0.207268]
[1725396600716,6.82443535,58109.0,58108.0,0.568068]
[1725396600917,6.91050135,58109.0,58108.0,0.3858]
[1725396601116,6.91050135,58109.0,58108.0,0.025]
[1725396601427,6.91050135,58109.0,58108.0,0.125]
[1725396601816,8.41050135,58109.0,58108.0,0.125]
[1725396603923,8.41050135,58109.0,58108.0,0.211068]
[1725396608113,8.32443535,58109.0,58108.0,0.211068]
[1725396609826,8.41050135,58109.0,58108.0,0.125]
[1725396611017,8.41050135,58109.0,58108.0,0.025]
[1725396612531,8.32443535,58109.0,58108.0,0.025]
[1725396614830,8.41050135,58109.0,58108.0,0.025]
[1725396615037,8.32443535,58109.0,58108.0,0.025]
[1725396615535,0.086072,58105.0,58104.0,0.086073]
[1725396615937,0.086072,58105.0,58104.0,0.186073]
[1725396617027,0.087072,58105.0,58104.0,0.188073]
[1725396617731,0.088072,58105.0,58104.0,0.188073]
[1725396619828,0.13959357,58105.0,58104.0,0.188073]
[1725396621233,0.13959357,58105.0,58104.0,0.088073]
[1725396621439,0.13959357,58105.0,58104.0,0.188073]
[1725396623131,0.088872,58105.0,58104.0,0.188073]
[1725396623334,0.09268552,58105.0,58104.0,0.188073]
[1725396624131,0.14424535,58105.0,58104.0,0.188073]
[1725396624332,0.09268552,58105.0,58104.0,0.188073]
[1725396625133,0.0028,58105.0,58104.0,0.188073]
[1725396625339,0.0028,58105.0,58104.0,1.96849331]
[1725396625844,0.05157373,58107.0,58106.0,0.172142]
[1725396626144,0.05157373,58107.0,58106.0,0.90329431]
[1725396626442,0.05157373,58107.0,58106.0,1.41957431]
[1725396627046,0.05357373,58107.0,58106.0,1.41957431]
[1725396627841,6.73784935,58109.0,58106.0,1.41957431]
[1725396627842,6.27784935,58109.0,58108.0,0.344272]
[1725396628042,6.27696935,58109.0,58108.0,1.09170431]
[1725396628240,6.12918409,58109.0,58108.0,2.21210569]
[1725396629142,6.12918409,58109.0,58108.0,0.85015631]
[1725396629339,6.12918409,58109.0,58108.0,0.85315631]
[1725396629538,6.12918409,58109.0,58108.0,0.85313155]
[1725396629935,6.13018409,58109.0,58108.0,0.85313155]
[1725396631043,0.001,58109.0,58108.0,1.86941155]
[1725396631231,0.001,58109.0,58108.0,0.85313155]
[1725396631437,0.001,58109.0,58108.0,1.96941155]
[1725396633635,0.001,58109.0,58108.0,1.36941155]
[1725396634033,0.001,58109.0,58108.0,0.85313155]
[1725396637149,0.001,58109.0,58108.0,1.21393155]
[1725396637945,0.001,58109.0,58108.0,2.33021155]
[1725396643147,0.004,58116.0,58113.0,0.17212]
[1725396643445,0.08605,58120.0,58113.0,0.17212]
[1725396643446,0.08605,58120.0,58113.0,0.63332]
[1725396643845,0.13465,58120.0,58113.0,0.63332]
[1725396644541,0.0486,58120.0,58113.0,0.71938]
[1725396644945,0.11728061,58120.0,58113.0,0.77086046]
[1725396645539,0.06868061,58118.0,58113.0,0.77086046]
[1725396646349,0.00125807,58114.0,58113.0,0.77086046]
[1725396647546,0.08731707,58114.0,58113.0,0.49874046]
[1725396647759,0.08731707,58114.0,58113.0,0.05188046]
[1725396647760,0.34205668,58114.0,58113.0,0.05188046]
[1725396647946,0.27337607,58114.0,58113.0,0.05188046]
[1725396648141,2.88961607,58114.0,58113.0,0.05188046]
[1725396648344,2.97567507,58114.0,58113.0,0.05188046]
[1725396649939,3.11567507,58114.0,58113.0,0.05188046]
[1725396650743,3.14357994,58114.0,58113.0,0.05188046]
[1725396651146,3.14740181,58114.0,58113.0,0.05188046]
[1725396652655,3.14740188,58114.0,58113.0,0.05188046]
[1725396652859,3.11949694,58114.0,58113.0,0.05188046]
[1725396654551,3.11949694,58114.0,58113.0,0.0004]
[1725396657062,3.48029694,58114.0,58113.0,0.0004]
[1725396661974,3.24029694,58114.0,58113.0,0.0004]
[1725396662178,2.88029694,58114.0,58113.0,0.0004]
[1725396663079,2.51949694,58114.0,58113.0,0.0004]
[1725396663279,2.54740084,58114.0,58113.0,0.0004]
[1725396663470,8.64868103,58114.0,58113.0,0.0004]
[1725396664781,9.24868103,58114.0,58113.0,0.0004]
[1725396665080,9.24868103,58114.0,58105.0,0.244]
[1725396665081,0.086069,58107.0,58106.0,0.086069]
[1725396665272,0.086469,58107.0,58106.0,0.086069]
[1725396665470,0.424369,58107.0,58106.0,0.086069]
[1725396666468,0.425369,58107.0,58106.0,0.091069]
[1725396667079,0.511438,58107.0,58106.0,0.005]
[1725396667383,0.512438,58107.0,58106.0,0.01]
[1725396670785,0.344288,58105.0,58104.0,0.0008]
[1725396670983,0.258234,58101.0,58100.0,0.05148503]
[1725396671183,0.258255,58096.0,58094.0,0.004]
[1725396671379,0.859055,58096.0,58092.0,0.0484]
[1725396671984,0.62797,58096.0,58092.0,0.0484]
[1725396672187,0.62497,58096.0,58092.0,0.0484]
[1725396672882,0.52497,58096.0,58092.0,0.0484]
[1725396673084,0.3638,58096.0,58092.0,0.0484]
[1725396673280,0.4638,58096.0,58092.0,0.0484]
[1725396674085,0.6038,58096.0,58092.0,0.0484]
[1725396674289,0.6058,58096.0,58092.0,0.0484]
[1725396676189,0.3658,58096.0,58092.0,0.0484]
[1725396676376,0.6058,58096.0,58092.0,0.0484]
[1725396677093,0.245,58096.0,58092.0,0.0484]
[1725396677793,0.24878821,58096.0,58092.0,0.0484]
[1725396677989,0.24878821,58096.0,58092.0,0.2884]
[1725396679293,0.24878821,58096.0,58092.0,0.374491]
[1725396679886,0.24878821,58096.0,58093.0,0.086089]
[1725396681092,0.24878821,58096.0,58094.0,0.086088]
[1725396684700,0.24878821,58096.0,58095.0,0.15476174]
[1725396684889,0.00878821,58096.0,58095.0,0.15476174]
[1725396685097,0.00878821,58096.0,58095.0,0.06867474]
[1725396685798,0.24878821,58096.0,58095.0,0.06867474]
[1725396686301,0.24878821,58096.0,58095.0,0.15476174]
[1725396687002,0.00878821,58096.0,58095.0,0.15476174]
[1725396688498,0.07738568,58096.0,58095.0,0.086087]
[1725396689202,0.07738568,58096.0,58095.0,0.412174]
[1725396689392,0.00878821,58096.0,58095.0,0.412174]
[1725396690389,0.00878821,58096.0,58095.0,0.772974]
[1725396692101,0.00678821,58096.0,58095.0,0.772974]
[1725396693004,0.00678821,58096.0,58095.0,0.532974]
[1725396693402,0.00378821,58096.0,58095.0,0.532974]
[1725396693597,0.001,58096.0,58095.0,0.532974]
[1725396694404,6.13018409,58096.0,58095.0,0.532974]
[1725396695296,6.13018409,58096.0,58095.0,0.859061]
[1725396695902,6.1816965,58096.0,58095.0,0.719061]
[1725396696401,6.1816965,58096.0,58095.0,0.78773574]
[1725396697604,6.1816965,58096.0,58095.0,0.719061]
[1725396698194,6.1816965,58096.0,58095.0,0.805148]
[1725396698401,6.0853135,58096.0,58095.0,1.921548]
[1725396699205,5.8020275,58096.0,58095.0,2.00745133]
[1725396699411,5.7158345,58096.0,58095.0,1.921548]
[1725396700303,5.66432209,58096.0,58095.0,1.921548]
[1725396700699,5.66432209,58096.0,58095.0,1.92534626]
[1725396701607,5.54591409,58096.0,58095.0,1.92534626]
[1725396701802,4.82848026,58096.0,58095.0,2.05649887]
[1725396702009,4.72405826,58096.0,58095.0,2.19649887]
[1725396702201,4.63197026,58096.0,58095.0,2.19649887]
[1725396704010,4.44207726,58096.0,58095.0,2.19649887]
[1725396704205,4.33938926,58096.0,58095.0,2.19649887]
[1725396704711,4.24994926,58096.0,58095.0,2.19649887]
[1725396707610,4.24994926,58096.0,58095.0,1.59649887]
[1725396708009,4.24994926,58096.0,58095.0,1.08009887]
[1725396708212,4.24994926,58096.0,58095.0,1.59649887]
[1725396708414,4.24994926,58096.0,58095.0,1.08009887]
[1725396710319,4.24994926,58096.0,58095.0,0.94894626]
[1725396710908,4.24994926,58096.0,58095.0,0.86285926]
[1725396711113,4.33603426,58096.0,58095.0,0.45068526]
[1725396712418,4.33603426,58096.0,58095.0,0.69068526]
[1725396713822,4.33603426,58096.0,58095.0,0.32988526]
[1725396714019,4.33603426,58096.0,58095.0,0.69068526]
[1725396714419,4.33603426,58096.0,58095.0,0.77652358]
[1725396714723,4.33603426,58096.0,58095.0,0.69068526]
[1725396719327,4.33993555,58096.0,58095.0,0.69068526]
[1725396719623,4.33993555,58096.0,58095.0,0.77652358]
[1725396720621,4.33603426,58096.0,58095.0,0.77652358]
[1725396721929,4.24994926,58096.0,58095.0,0.69068526]
[1725396723321,4.24994926,58096.0,58095.0,0.82184656]
[1725396723922,4.24994926,58096.0,58095.0,0.68184656]
[1725396725422,4.24994926,58096.0,58095.0,0.76793356]
[1725396728025,4.24994926,58096.0,58095.0,0.85402056]
[1725396728231,4.24994926,58096.0,58095.0,0.76793356]
[1725396728430,4.24994926,58096.0,58095.0,0.85402056]
[1725396729234,4.24994926,58096.0,58095.0,0.95721542]
[1725396729827,4.24994926,58096.0,58095.0,0.85402056]
[1725396731033,4.24994926,58096.0,58095.0,0.95721542]
[1725396731228,4.24994926,58096.0,58095.0,0.76793356]
[1725396731934,4.24994926,58096.0,58095.0,0.58184656]
[1725396732239,4.24994926,58096.0,58095.0,0.5780483]
[1725396733543,4.33603426,58096.0,58095.0,0.5780483]
[1725396733728,4.33603426,58096.0,58094.0,0.18920513]
[1725396733930,0.172174,58095.0,58094.0,0.10319486]
[1725396734331,0.172174,58095.0,58094.0,0.17198542]
[1725396734541,0.172174,58095.0,58094.0,0.06879056]
[1725396735243,0.172974,58095.0,58094.0,0.06879056]
[1725396737339,0.17679389,58095.0,58094.0,0.06879056]
[1725396739941,0.22826086,58095.0,58094.0,0.06879056]
[1725396740267,0.172176,58094.0,58093.0,0.24089083]
[1725396740435,0.272976,58094.0,58093.0,0.17210027]
[1725396744448,0.172976,58094.0,58093.0,0.17210027]
[1725396745035,0.172976,58094.0,58093.0,0.24084672]
[1725396745844,0.172976,58094.0,58093.0,0.15483645]
[1725396746448,0.272976,58094.0,58093.0,0.51563645]
[1725396746648,0.272976,58094.0,58093.0,0.44689]
[1725396747248,0.272976,58094.0,58093.0,0.08609]
[1725396749955,0.272976,58094.0,58093.0,0.15483294]
[1725396752254,0.272976,58094.0,58093.0,0.06874294]
[1725396755359,0.17218,58093.0,58092.0,0.086091]
[1725396755661,0.17298,58093.0,58092.0,0.086091]
[1725396761662,0.172182,58092.0,58091.0,0.44835643]
[1725396761853,0.172982,58092.0,58091.0,0.44675643]
[1725396762352,0.172982,58092.0,58091.0,0.3608]
[1725396763059,0.086093,58091.0,58090.0,0.086094]
[1725396763250,0.086893,58091.0,58090.0,0.446894]
[1725396764258,0.087893,58091.0,58090.0,0.446894]
[1725396764562,0.088893,58091.0,58090.0,0.446894]
[1725396766060,0.088893,58091.0,58090.0,0.57807505]
[1725396767061,0.174986,58091.0,58090.0,0.57807505]
[1725396767764,0.174986,58091.0,58090.0,0.62447505]
[1725396769164,0.174986,58091.0,58090.0,0.67807505]
[1725396771174,0.174986,58091.0,58090.0,0.67807436]
[1725396773159,0.174986,58091.0,58090.0,0.546894]
[1725396773359,0.174986,58091.0,58090.0,0.3172743]
[1725396773656,0.22656816,58091.0,58090.0,0.6780743]
[1725396776367,4.47651742,58091.0,58090.0,0.67807432]
[1725396777061,4.47651742,58091.0,58090.0,0.31727432]
[1725396777260,4.47651742,58091.0,58090.0,0.67807432]
[1725396778359,4.42493526,58091.0,58090.0,0.67807432]
[1725396778863,4.47652128,58091.0,58090.0,0.67807432]
[1725396780864,4.47652128,58091.0,58090.0,0.67807413]
[1725396782971,4.47652128,58091.0,58090.0,0.31727413]
[1725396783170,4.47652128,58091.0,58090.0,0.67807413]
[1725396788866,4.39042828,58091.0,58090.0,0.67807413]
[1725396789469,4.30433528,58091.0,58090.0,1.96670213]
[1725396789672,4.20968535,58091.0,58090.0,2.04025785]
[1725396789975,4.20968535,58091.0,58090.0,2.12635185]
[1725396790168,4.20968535,58091.0,58090.0,2.12715185]
[1725396792875,4.20968535,58091.0,58090.0,2.48795185]
[1725396793076,4.14940549,58091.0,58090.0,2.48795185]
[1725396796266,4.14940549,58091.0,58090.0,2.32830213]
[1725396796774,4.15040549,58091.0,58090.0,2.32830213]
[1725396796973,4.15040549,58091.0,58090.0,2.33130213]
[1725396796974,4.15140549,58091.0,58090.0,2.33130213]
[1725396800970,4.15140549,58091.0,58090.0,1.81486213]
[1725396801577,4.15140549,58091.0,58090.0,1.21486213]
[1725396801974,4.15140549,58091.0,58090.0,1.083682]
[1725396804066,4.15140549,58091.0,58090.0,1.21483707]
[1725396804582,4.15140549,58091.0,58090.0,0.49323707]
[1725396804765,4.15140549,58091.0,58090.0,1.21483707]
[1725396808982,4.15140549,58091.0,58090.0,0.49323707]
[1725396809183,4.15140549,58091.0,58090.0,1.21483707]
[1725396809380,4.15140549,58091.0,58090.0,1.37447502]
[1725396809682,4.15140549,58091.0,58090.0,0.49323707]
[1725396809883,4.15140549,58091.0,58090.0,1.11483707]
[1725396810088,4.23749849,58091.0,58090.0,0.94264907]
[1725396810290,4.33749849,58091.0,58090.0,0.85655507]
[1725396810583,4.33749849,58091.0,58090.0,0.7254]
[1725396810995,5.83749849,58091.0,58090.0,0.7254]
[1725396811384,4.33749849,58091.0,58090.0,0.7254]
[1725396812688,4.23749849,58091.0,58090.0,0.7254]
[1725396812892,4.24141707,58091.0,58090.0,0.7254]
[1725396813789,4.24141707,58091.0,58090.0,0.3646]
[1725396813986,4.24141707,58091.0,58090.0,0.0038]
[1725396814290,4.24141707,58091.0,58090.0,0.3646]
[1725396816490,4.24141707,58091.0,58090.0,0.4646]
[1725396817777,4.24141707,58091.0,58090.0,0.1038]
[1725396817983,4.24141707,58091.0,58090.0,0.4646]
[1725396818493,4.15140549,58091.0,58090.0,0.550694]
[1725396820592,4.15140549,58091.0,58090.0,0.450694]
[1725396820794,4.15140549,58091.0,58090.0,0.550694]
[1725396836600,4.15140549,58091.0,58090.0,0.63665226]
[1725396836795,4.15140549,58091.0,58090.0,0.550694]
[1725396837100,4.15140549,58091.0,58090.0,0.63665226]
[1725396837399,4.15140549,58091.0,58090.0,0.76783085]
[1725396838088,4.15140549,58091.0,58090.0,0.68187259]
[1725396840691,4.15140549,58091.0,58090.0,0.85406059]
[1725396840898,4.15140549,58091.0,58090.0,0.85404494]
[1725396842889,4.15140549,58091.0,58090.0,1.01369563]
[1725396844094,4.15140549,58091.0,58090.0,1.37449563]
[1725396844295,4.15140549,58091.0,58090.0,1.21484494]
[1725396845793,4.15140549,58091.0,58090.0,1.083682]
[1725396848403,4.15140549,58091.0,58090.0,1.18689947]
[1725396849106,4.15140549,58091.0,58090.0,1.31806587]
[1725396851797,4.15140549,58091.0,58090.0,1.18689947]
[1725396853308,4.15140549,58091.0,58090.0,1.083682]
[1725396853503,4.15140549,58091.0,58090.0,1.18689947]
[1725396854607,4.15140549,58091.0,58090.0,1.31806621]
[1725396855112,4.15140549,58091.0,58090.0,1.21484874]
[1725396858707,4.15140549,58091.0,58090.0,1.37449757]
[1725396858898,4.15140549,58091.0,58090.0,1.21484874]
[1725396859098,4.15140549,58091.0,58090.0,1.37449664]
[1725396859296,4.15140549,58091.0,58090.0,1.21484874]
[1725396860902,4.15140549,58091.0,58090.0,1.04587525]
[1725396861111,4.15140549,58091.0,58090.0,1.04266074]
[1725396861914,4.15140549,58091.0,58090.0,0.76788242]
[1725396862498,4.23749849,58091.0,58090.0,0.58178842]
[1725396862701,4.23749849,58091.0,58090.0,0.3646]
[1725396862911,4.23749849,58091.0,58090.0,0.4646]
[1725396865311,4.28890319,58091.0,58090.0,0.4646]
[1725396865821,4.15140549,58091.0,58090.0,0.4646]
[1725396866315,4.15140549,58091.0,58090.0,0.550694]
[1725396866514,4.15140549,58091.0,58090.0,0.68187571]
[1725396867019,4.15140549,58091.0,58090.0,0.76796971]
[1725396867209,4.15140549,58091.0,58090.0,0.92761608]
[1725396867621,3.69140549,58091.0,58090.0,0.92761608]
[1725396868313,3.69140549,58091.0,58090.0,1.53015008]
[1725396868517,3.19490449,58091.0,58090.0,2.13015008]
[1725396868715,3.04543048,58091.0,58090.0,2.13015008]
[1725396868913,2.94428448,58091.0,58090.0,2.13015008]
[1725396869108,2.85286848,58091.0,58090.0,2.13015008]
[1725396870313,2.70286848,58091.0,58090.0,2.13015008]
[1725396871418,2.39286848,58091.0,58090.0,2.13015008]
[1725396872810,1.90629056,58091.0,58090.0,2.13015008]
[1725396873012,0.31151196,58091.0,58090.0,2.73117506]
[1725396873218,0.004,58108.0,58095.0,0.17069266]
[1725396873416,0.0514155,58109.0,58107.0,0.186069]
[1725396873612,0.0514155,58109.0,58108.0,0.086068]
[1725396874309,0.00782318,58122.0,58113.0,0.08606]
[1725396874310,0.06881208,58114.0,58113.0,0.08606]
[1725396874515,0.06881208,58114.0,58113.0,0.54686]
[1725396876106,0.07281208,58114.0,58113.0,0.54686]
[1725396876516,0.07281208,58114.0,58113.0,0.55064911]
[1725396877221,0.004,58128.0,58126.0,0.08604]
[1725396877520,0.049,58127.0,58126.0,0.80764]
[1725396878314,0.0451,58129.0,58128.0,0.086038]
[1725396878508,0.00025807,58132.0,58131.0,0.086034]
[1725396878714,0.00025807,58132.0,58131.0,0.546834]
[1725396880118,0.00225807,58132.0,58131.0,0.686834]
[1725396881018,0.00225807,58132.0,58131.0,1.802914]
[1725396881426,0.048,58140.0,58139.0,0.086022]
[1725396881718,0.0483,58147.0,58139.0,0.6008]
[1725396881910,0.0483,58147.0,58146.0,0.24]
[1725396882114,0.17139062,58150.0,58149.0,0.086007]
[1725396882313,0.17139062,58150.0,58149.0,0.686807]
[1725396882513,0.17139062,58150.0,58149.0,1.802727]
[1725396882714,0.18873844,58155.0,58149.0,1.802727]
[1725396882917,0.18873844,58155.0,58154.0,0.6868]
[1725396883119,0.0483,58161.0,58160.0,0.085991]
[1725396883318,0.0483,58166.0,58160.0,0.6008]
[1725396883521,0.0483,58166.0,58165.0,0.6008]
[1725396883716,0.0483,58166.0,58165.0,0.686783]
[1725396884314,0.00025807,58171.0,58167.0,0.08598]
[1725396884519,0.00025807,58171.0,58170.0,0.6008]
[1725396884821,0.00025807,58171.0,58170.0,0.3608]
[1725396885013,0.00025807,58171.0,58170.0,0.6008]
[1725396885616,0.00225807,58171.0,58170.0,0.6008]
[1725396885813,0.08823207,58171.0,58170.0,0.6008]
[1725396886020,0.00225807,58171.0,58170.0,0.6008]
[1725396886325,0.00225807,58171.0,58170.0,0.6018]
[1725396886516,0.00225807,58171.0,58170.0,0.6028]
[1725396889025,0.00225807,58171.0,58170.0,0.688776]
[1725396889724,0.00025807,58171.0,58170.0,0.687776]
[1725396890025,0.00025807,58171.0,58170.0,0.688776]
[1725396890026,0.00425807,58171.0,58170.0,0.688776]
[1725396890928,0.00425807,58171.0,58170.0,0.687776]
[1725396891226,0.0483,58180.0,58177.0,0.085965]
[1725396891431,0.0483,58180.0,58179.0,0.6008]
[1725396892537,0.0523,58180.0,58179.0,0.6028]
[1725396892721,0.0523,58180.0,58179.0,0.688763]
[1725396895734,0.0523,58180.0,58179.0,0.6028]
[1725396895932,0.0523,58180.0,58179.0,0.6032]
[1725396896132,0.0483,58180.0,58179.0,0.6032]
[1725396896733,0.0483,58180.0,58179.0,0.60705382]
[1725396897130,0.0483,58180.0,58179.0,0.61005382]
[1725396897329,0.00530252,58180.0,58179.0,0.6062]
[1725396897535,0.0498,58184.0,58179.0,0.6062]
[1725396897739,0.135755,58184.0,58183.0,0.0004]
[1725396898941,0.135755,58184.0,58183.0,0.2414]
[1725396900527,0.135755,58184.0,58183.0,0.2424]
[1725396900732,0.181455,58184.0,58183.0,0.2414]
[1725396900927,0.181455,58184.0,58183.0,0.2424]
[1725396901133,0.181455,58184.0,58183.0,0.2414]
[1725396901434,0.181455,58184.0,58183.0,0.2424]
[1725396901931,0.181455,58184.0,58183.0,0.2414]
[1725396902239,0.181455,58184.0,58183.0,0.2424]
[1725396902837,0.181455,58184.0,58183.0,0.0024]
[1725396903734,0.181455,58184.0,58183.0,0.0014]
[1725396903930,0.181455,58184.0,58183.0,0.2424]
[1725396904132,0.0955,58184.0,58183.0,0.2424]
[1725396904328,0.0955,58184.0,58183.0,0.2404]
[1725396904533,0.0955,58184.0,58183.0,0.2424]
[1725396904943,0.0955,58184.0,58183.0,0.327357]
[1725396905147,0.0955,58184.0,58183.0,0.328357]
[1725396905352,0.00025784,58185.0,58184.0,0.085955]
[1725396905533,0.00025784,58185.0,58184.0,0.446755]
[1725396905741,0.0452,58190.0,58189.0,0.085948]
[1725396906039,0.004,58194.0,58193.0,0.085942]
[1725396906249,0.0452,58195.0,58194.0,0.08594]
[1725396906433,0.004,58202.0,58194.0,0.08594]
[1725396906434,0.004,58202.0,58194.0,0.0004]
[1725396906632,0.0036,58203.0,58192.0,0.3608]
[1725396906633,0.0036,58203.0,58202.0,0.085929]
[1725396906835,0.0452,58211.0,58210.0,0.085917]
[1725396907038,0.0452,58211.0,58210.0,0.325917]
[1725396907247,0.0452,58211.0,58210.0,0.69512404]
[1725396907544,0.00017002,58212.0,58211.0,0.085915]
[1725396907739,0.00017002,58212.0,58211.0,0.446715]
[1725396909646,0.00017002,58212.0,58211.0,0.45054172]
[1725396910049,0.00017002,58212.0,58211.0,0.45154172]
[1725396910643,0.00017002,58212.0,58211.0,0.45054172]
[1725396913658,0.00017002,58212.0,58211.0,0.45134172]
[1725396916845,0.00017002,58212.0,58211.0,0.53725672]
[1725396917051,0.0452,58220.0,58219.0,0.085904]
[1725396917250,0.0483,58230.0,58229.0,0.085889]
[1725396917553,0.049,58235.0,58234.0,0.085881]
[1725396917749,0.049,58235.0,58234.0,0.686681]
[1725396918056,0.049,58235.0,58234.0,0.687481]
[1725396919446,0.085865,58245.0,58238.0,0.085875]
[1725396919656,0.0453,58244.0,58238.0,0.085875]
[1725396919851,0.0453,58244.0,58234.0,0.3632]
[1725396919852,0.131167,58244.0,58243.0,0.6008]
[1725396920250,0.0453,58244.0,58243.0,0.6008]
[1725396921059,0.0453,58244.0,58243.0,0.6018]
[1725396921244,0.0453,58244.0,58243.0,0.6028]
[1725396922561,0.131167,58244.0,58243.0,0.6028]
[1725396922751,1.486247,58244.0,58243.0,0.3628]
[1725396922952,1.246247,58244.0,58243.0,0.3628]
[1725396923754,0.131167,58244.0,58243.0,0.3628]
[1725396924764,0.0453,58244.0,58243.0,0.448668]
[1725396925952,0.0453,58244.0,58243.0,0.3628]
[1725396926364,0.131167,58244.0,58243.0,0.3628]
[1725396927660,0.0453,58244.0,58243.0,0.3628]
[1725396930054,0.0453,58244.0,58243.0,0.448668]
[1725396930261,0.0491,58246.0,58245.0,0.17173]
[1725396930463,0.05093921,58248.0,58245.0,0.326665]
[1725396930760,0.0477,58258.0,58257.0,0.085848]
[1725396930962,0.0477,58258.0,58257.0,0.687448]
[1725396932762,0.0477,58258.0,58257.0,0.688448]
[1725396933064,0.0477,58258.0,58257.0,0.689448]
[1725396933263,0.0477,58258.0,58257.0,0.69327612]
[1725396933470,0.0477,58258.0,58257.0,0.69227612]
[1725396933659,0.0477,58258.0,58257.0,0.69327612]
[1725396933973,0.0477,58258.0,58248.0,0.004]
[1725396933974,0.085859,58249.0,58248.0,0.004]
[1725396934169,0.085855,58252.0,58247.0,0.6008]
[1725396934462,0.085848,58257.0,58250.0,0.24]
[1725396934463,1.5,58251.0,58250.0,0.24]
[1725396934667,1.585817,58251.0,58250.0,0.24]
[1725396934864,0.085857,58251.0,58250.0,0.24]
[1725396935072,0.085861,58248.0,58247.0,0.6008]
[1725396935565,0.084861,58248.0,58247.0,0.6008]
[1725396935973,1.247301,58248.0,58247.0,0.3608]
[1725396936266,1.247301,58248.0,58247.0,0.3618]
[1725396936669,1.248301,58248.0,58247.0,0.3628]
[1725396937071,1.248301,58248.0,58247.0,0.002]
[1725396938872,1.250301,58248.0,58247.0,0.002]
[1725396940364,1.248301,58248.0,58247.0,0.001]
[1725396940564,1.251301,58248.0,58247.0,0.002]
[1725396940764,1.252301,58248.0,58247.0,0.002]
[1725396941966,1.252301,58248.0,58247.0,0.001]
[1725396941967,1.249301,58248.0,58247.0,0.001]
[1725396942275,1.251301,58248.0,58247.0,0.002]
[1725396942476,1.250301,58248.0,58247.0,0.002]
[1725396943277,1.336162,58248.0,58247.0,0.002]
[1725396943479,1.250301,58248.0,58247.0,0.242]
[1725396943868,1.250301,58248.0,58247.0,0.327862]
[1725396944373,0.135261,58248.0,58247.0,0.242]
[1725396945173,0.133261,58248.0,58247.0,0.242]
[1725396945372,0.135261,58248.0,58247.0,0.242]
[1725396948679,0.135261,58248.0,58247.0,0.6028]
[1725396948873,0.087861,58248.0,58247.0,0.6028]
[1725396949266,0.004,58248.0,58247.0,0.688662]
[1725396949673,0.004,58255.0,58254.0,0.085852]
[1725396949872,0.0485,58258.0,58256.0,0.085848]
[1725396950085,0.0485,58258.0,58257.0,0.2408]
[1725396950287,0.0485,58258.0,58257.0,0.24]
[1725396951876,0.134346,58258.0,58257.0,0.24]
[1725396952085,0.134346,58258.0,58257.0,0.241]
[1725396952583,0.134346,58258.0,58257.0,0.242]
[1725396955676,0.20285809,58258.0,58257.0,0.242]
[1725396955876,0.649306,58258.0,58257.0,0.002]
[1725396956080,0.600808,58257.0,58250.0,0.004]
[1725396956284,0.171722,58248.0,58247.0,0.004]
[1725396956486,0.171722,58248.0,58244.0,0.07230683]
[1725396956487,0.085865,58245.0,58244.0,0.06830683]
[1725396956681,0.086265,58245.0,58244.0,0.06830683]
[1725396956871,0.17213,58245.0,58244.0,0.06830683]
[1725396957086,1.52721,58245.0,58244.0,0.06830683]
[1725396958489,0.33105132,58245.0,58237.0,0.244]
[1725396958682,0.08627,58242.0,58237.0,0.244]
[1725396958879,0.08627,58242.0,58237.0,0.24]
[1725396959190,0.08527,58242.0,58237.0,0.24]
[1725396959377,0.13207,58242.0,58237.0,0.24]
[1725396959693,0.13107,58242.0,58237.0,0.24]
[1725396959899,0.21694,58242.0,58237.0,0.24]
[1725396960393,0.21894,58242.0,58241.0,0.00125761]
[1725396961292,0.22194,58242.0,58241.0,0.00225761]
[1725396961694,0.13607,58242.0,58241.0,0.00225761]
[1725396962091,0.22194,58242.0,58241.0,0.00225761]
[1725396962492,0.22294,58242.0,58241.0,0.00225761]
[1725396962896,0.22094,58242.0,58241.0,0.00125761]
[1725396963097,0.22394,58242.0,58241.0,0.00225761]
[1725396964094,0.22294,58242.0,58241.0,0.00225761]
[1725396964686,0.21994,58242.0,58241.0,0.00125761]
[1725396964886,0.22294,58242.0,58241.0,0.00225761]
[1725396965197,0.21994,58242.0,58241.0,0.00125761]
[1725396965394,0.22194,58242.0,58241.0,0.00225761]
[1725396965988,0.22094,58242.0,58241.0,0.00125761]
[1725396966192,0.22294,58242.0,58241.0,0.00225761]
[1725396968489,0.22094,58242.0,58241.0,0.00125761]
[1725396968690,0.30881,58242.0,58241.0,0.00225761]
[1725396969296,0.30681,58242.0,58241.0,0.00125761]
[1725396969493,0.30881,58242.0,58241.0,0.00225761]